[Event "Titled Tuesday Blitz March 28 Late 2023"]
[White "Ardila, Oscar Humberto"]
[Black "Karas, Marek"]
[WhiteFideId "4404742"]
[BlackFideId "14928558"]
[WhiteElo "1911"]
[BlackElo "2233"]
[Result "0-1"]
[Round "02"]
[TimeControl "180+2"]
[Date "2023.03.28"]
[WhiteClock "0:00:36"]
[BlackClock "0:00:05"]

1. d4 {[%clk 0:02:59]}  Nf6 {[%clk 0:02:57]} 2. c4 {[%clk 0:02:59]}  g6 {[%clk 0:02:57]} 3. Nc3 {[%clk 0:02:59]}  Bg7 {[%clk 0:02:56]} 4. Nf3 {[%clk 0:03:00]}  O-O {[%clk 0:02:52]} 5. e3 {[%clk 0:03:00]}  d5 {[%clk 0:02:51]} 6. Be2 {[%clk 0:03:00]}  c6 {[%clk 0:02:46]} 7. O-O {[%clk 0:03:00]}  Bg4 {[%clk 0:02:45]} 8. b3 {[%clk 0:03:00]}  Nbd7 {[%clk 0:02:40]} 9. Bb2 {[%clk 0:02:59]}  Bxf3 {[%clk 0:02:34]} 10. Bxf3 {[%clk 0:02:59]}  e6 {[%clk 0:02:33]} 11. Rc1 {[%clk 0:02:57]}  Qe7 {[%clk 0:02:30]} 12. Re1 {[%clk 0:02:56]}  a5 {[%clk 0:02:26]} 13. a4 {[%clk 0:02:52]}  Rfe8 {[%clk 0:02:23]} 14. Ra1 {[%clk 0:02:51]}  dxc4 {[%clk 0:01:57]} 15. bxc4 {[%clk 0:02:51]}  e5 {[%clk 0:01:57]} 16. Ba3 {[%clk 0:02:47]}  Qd8 {[%clk 0:01:54]} 17. d5 {[%clk 0:02:47]}  e4 {[%clk 0:01:49]} 18. Be2 {[%clk 0:02:46]}  Ne5 {[%clk 0:01:44]} 19. d6 {[%clk 0:02:40]}  h5 {[%clk 0:01:23]} 20. Rb1 {[%clk 0:02:39]}  Rb8 {[%clk 0:01:21]} 21. Qd2 {[%clk 0:02:37]}  Qd7 {[%clk 0:01:12]} 22. c5 {[%clk 0:02:35]}  Qf5 {[%clk 0:01:11]} 23. Bf1 {[%clk 0:02:27]}  h4 {[%clk 0:01:07]} 24. h3 {[%clk 0:02:25]}  Qxh3 {[%clk 0:01:05]} 25. Ne2 {[%clk 0:02:01]}  Qg4 {[%clk 0:00:56]} 26. Nf4 {[%clk 0:01:56]}  g5 {[%clk 0:00:52]} 27. Be2 {[%clk 0:01:48]}  Nf3+ {[%clk 0:00:50]} 28. Bxf3 {[%clk 0:01:46]}  exf3 {[%clk 0:00:50]} 29. Qd1 {[%clk 0:01:16]}  gxf4 {[%clk 0:00:47]} 30. Qxf3 {[%clk 0:01:16]}  Qxf3 {[%clk 0:00:46]} 31. gxf3 {[%clk 0:01:17]}  fxe3 {[%clk 0:00:44]} 32. fxe3 {[%clk 0:01:17]}  Nd7 {[%clk 0:00:40]} 33. Kg2 {[%clk 0:01:16]}  b6 {[%clk 0:00:37]} 34. cxb6 {[%clk 0:01:14]}  Nxb6 {[%clk 0:00:35]} 35. Rh1 {[%clk 0:01:10]}  Nc4 {[%clk 0:00:35]} 36. Bc5 {[%clk 0:01:08]}  Rxb1 {[%clk 0:00:32]} 37. Rxb1 {[%clk 0:01:07]}  Nxe3+ {[%clk 0:00:33]} 38. Bxe3 {[%clk 0:01:07]}  Rxe3 {[%clk 0:00:33]} 39. Rd1 {[%clk 0:01:03]}  Re8 {[%clk 0:00:30]} 40. Kh3 {[%clk 0:01:02]}  Bf6 {[%clk 0:00:30]} 41. Kg4 {[%clk 0:01:02]}  c5 {[%clk 0:00:26]} 42. Kf5 {[%clk 0:01:02]}  Bd4 {[%clk 0:00:26]} 43. Rh1 {[%clk 0:00:58]}  Re6 {[%clk 0:00:23]} 44. Rxh4 {[%clk 0:00:57]}  Rxd6 {[%clk 0:00:23]} 45. Ke4 {[%clk 0:00:57]}  Re6+ {[%clk 0:00:22]} 46. Kd5 {[%clk 0:00:57]}  Kf8 {[%clk 0:00:22]} 47. f4 {[%clk 0:00:55]}  Re3 {[%clk 0:00:19]} 48. Rh6 {[%clk 0:00:52]}  Ke7 {[%clk 0:00:19]} 49. Ra6 {[%clk 0:00:50]}  Rf3 {[%clk 0:00:18]} 50. Ke4 {[%clk 0:00:50]}  Re3+ {[%clk 0:00:19]} 51. Kd5 {[%clk 0:00:51]}  Re1 {[%clk 0:00:14]} 52. Rxa5 {[%clk 0:00:50]}  Kf6 {[%clk 0:00:14]} 53. Ra7 {[%clk 0:00:50]}  Rd1 {[%clk 0:00:13]} 54. a5 {[%clk 0:00:49]}  c4 {[%clk 0:00:06]} 55. Ra6+ {[%clk 0:00:47]}  Kf5 {[%clk 0:00:05]} 56. Kxc4 {[%clk 0:00:47]}  Kxf4 {[%clk 0:00:05]} 57. Ra8 {[%clk 0:00:44]}  Be3 {[%clk 0:00:04]} 58. a6 {[%clk 0:00:44]}  f5 {[%clk 0:00:05]} 59. Rf8 {[%clk 0:00:42]}  Ra1 {[%clk 0:00:05]} 60. Rf6 {[%clk 0:00:42]}  Kg4 {[%clk 0:00:04]} 61. Kd3 {[%clk 0:00:41]}  f4 {[%clk 0:00:04]} 62. Ke4 {[%clk 0:00:41]}  Ra4+ {[%clk 0:00:04]} 63. Kd3 {[%clk 0:00:42]}  Kf3 {[%clk 0:00:05]} 64. Rh6 {[%clk 0:00:41]}  Ra3+ {[%clk 0:00:06]} 65. Kc4 {[%clk 0:00:40]}  Ke2 {[%clk 0:00:05]} 66. Rh2+ {[%clk 0:00:38]}  Bf2 {[%clk 0:00:06]} 67. Rh6 {[%clk 0:00:36]}  f3 {[%clk 0:00:06]} 68. Kd5 {[%clk 0:00:36]}  Be3 {[%clk 0:00:06]} 69. Ke4 {[%clk 0:00:36]}  Bxh6 {[%clk 0:00:05]} 0-1


[Site "https://www.chess.com"]

[Event "Titled Tuesday Blitz March 28 Late 2023"]
[White "Sreyas Payyappat"]
[Black "Wang, Alexander J"]
[WhiteFideId "46674969"]
[BlackFideId "30955270"]
[WhiteElo "2083"]
[BlackElo "2293"]
[Result "0-1"]
[Round "02"]
[TimeControl "180+2"]
[Date "2023.03.28"]
[WhiteClock "0:00:14"]
[BlackClock "0:00:25"]

1. e4 {[%clk 0:01:16]}  c5 {[%clk 0:02:59]} 2. Nf3 {[%clk 0:01:16]}  d6 {[%clk 0:02:57]} 3. d4 {[%clk 0:01:17]}  cxd4 {[%clk 0:02:57]} 4. Nxd4 {[%clk 0:01:18]}  Nf6 {[%clk 0:02:57]} 5. Nc3 {[%clk 0:01:18]}  g6 {[%clk 0:02:58]} 6. f4 {[%clk 0:01:14]}  Nc6 {[%clk 0:02:57]} 7. Be3 {[%clk 0:01:13]}  Bd7 {[%clk 0:02:52]} 8. Be2 {[%clk 0:01:13]}  Bg7 {[%clk 0:02:51]} 9. O-O {[%clk 0:01:13]}  O-O {[%clk 0:02:50]} 10. Qd3 {[%clk 0:01:09]}  Nxd4 {[%clk 0:02:38]} 11. Bxd4 {[%clk 0:01:08]}  Bc6 {[%clk 0:02:37]} 12. Bf3 {[%clk 0:01:05]}  Nd7 {[%clk 0:02:32]} 13. Rad1 {[%clk 0:01:04]}  Nc5 {[%clk 0:02:26]} 14. Qe3 {[%clk 0:01:02]}  Bxd4 {[%clk 0:02:20]} 15. Qxd4 {[%clk 0:01:03]}  Ne6 {[%clk 0:02:18]} 16. Qe3 {[%clk 0:01:00]}  Qb6 {[%clk 0:02:11]} 17. Qxb6 {[%clk 0:00:59]}  axb6 {[%clk 0:02:12]} 18. f5 {[%clk 0:00:57]}  Nc5 {[%clk 0:02:12]} 19. f6 {[%clk 0:00:55]}  exf6 {[%clk 0:01:54]} 20. Rxd6 {[%clk 0:00:54]}  Kg7 {[%clk 0:01:45]} 21. Be2 {[%clk 0:00:27]}  Nxe4 {[%clk 0:01:26]} 22. Nxe4 {[%clk 0:00:24]}  Bxe4 {[%clk 0:01:27]} 23. Bc4 {[%clk 0:00:25]}  f5 {[%clk 0:01:19]} 24. Rxb6 {[%clk 0:00:23]}  Rfd8 {[%clk 0:01:18]} 25. Re1 {[%clk 0:00:17]}  Rd2 {[%clk 0:01:13]} 26. Re2 {[%clk 0:00:17]}  Rad8 {[%clk 0:01:11]} 27. Kf2 {[%clk 0:00:17]}  Rxe2+ {[%clk 0:01:06]} 28. Bxe2 {[%clk 0:00:17]}  Rd2 {[%clk 0:01:03]} 29. c4 {[%clk 0:00:16]}  Rc2 {[%clk 0:00:54]} 30. g3 {[%clk 0:00:14]}  Bd3 {[%clk 0:00:51]} 31. Rxb7 {[%clk 0:00:13]}  Bxe2 {[%clk 0:00:46]} 32. Ke3 {[%clk 0:00:13]}  Bxc4 {[%clk 0:00:43]} 33. a4 {[%clk 0:00:13]}  Bd5 {[%clk 0:00:40]} 34. Rb6 {[%clk 0:00:12]}  Rc4 {[%clk 0:00:35]} 35. a5 {[%clk 0:00:13]}  Rc6 {[%clk 0:00:30]} 36. Rb8 {[%clk 0:00:12]}  g5 {[%clk 0:00:27]} 37. b4 {[%clk 0:00:13]}  Bc4 {[%clk 0:00:23]} 38. b5 {[%clk 0:00:13]}  Rc5 {[%clk 0:00:23]} 39. b6 {[%clk 0:00:10]}  Rxa5 {[%clk 0:00:23]} 40. b7 {[%clk 0:00:10]}  Rb5 {[%clk 0:00:21]} 41. Rc8 {[%clk 0:00:10]}  Rxb7 {[%clk 0:00:20]} 42. Rxc4 {[%clk 0:00:10]}  Rb3+ {[%clk 0:00:21]} 43. Kf2 {[%clk 0:00:10]}  f6 {[%clk 0:00:21]} 44. Rc5 {[%clk 0:00:11]}  Kg6 {[%clk 0:00:22]} 45. Kg2 {[%clk 0:00:11]}  Rb2+ {[%clk 0:00:22]} 46. Kg1 {[%clk 0:00:12]}  h5 {[%clk 0:00:23]} 47. Rc6 {[%clk 0:00:12]}  g4 {[%clk 0:00:23]} 48. Rc5 {[%clk 0:00:12]}  Rb4 {[%clk 0:00:23]} 49. Ra5 {[%clk 0:00:13]}  f4 {[%clk 0:00:23]} 50. gxf4 {[%clk 0:00:13]}  Rxf4 {[%clk 0:00:24]} 51. Kg2 {[%clk 0:00:13]}  Rb4 {[%clk 0:00:24]} 52. Kg3 {[%clk 0:00:14]}  f5 {[%clk 0:00:25]} 53. Kh4 {[%clk 0:00:14]}  Rb6 {[%clk 0:00:24]} 54. Rc5 {[%clk 0:00:14]}  Rf6 {[%clk 0:00:24]} 55. Ra5 {[%clk 0:00:14]}  f4 {[%clk 0:00:24]} 56. Rg5+ {[%clk 0:00:15]}  Kf7 {[%clk 0:00:23]} 57. Rxh5 {[%clk 0:00:16]}  f3 {[%clk 0:00:24]} 58. Rh7+ {[%clk 0:00:15]}  Kg8 {[%clk 0:00:24]} 59. Ra7 {[%clk 0:00:14]}  f2 {[%clk 0:00:24]} 60. Ra1 {[%clk 0:00:13]}  f1=Q {[%clk 0:00:24]} 61. Rxf1 {[%clk 0:00:14]}  Rxf1 {[%clk 0:00:25]} 62. Kxg4 {[%clk 0:00:14]}  Kg7 {[%clk 0:00:25]} 0-1


[Site "https://www.chess.com"]

[Event "Titled Tuesday Blitz March 28 Late 2023"]
[White "Bogaudinov, Rushan"]
[Black "Yelisieiev, Yevhenii"]
[WhiteFideId "4129288"]
[BlackFideId "14139642"]
[WhiteElo "1949"]
[BlackElo "2447"]
[Result "1-0"]
[Round "02"]
[TimeControl "180+2"]
[Date "2023.03.28"]
[WhiteClock "0:00:15"]
[BlackClock "0:00:11"]

1. d4 {[%clk 0:02:59]}  d6 {[%clk 0:03:00]} 2. e4 {[%clk 0:02:58]}  Nf6 {[%clk 0:03:01]} 3. Nc3 {[%clk 0:02:58]}  e5 {[%clk 0:03:02]} 4. dxe5 {[%clk 0:02:57]}  dxe5 {[%clk 0:03:03]} 5. Qxd8+ {[%clk 0:02:56]}  Kxd8 {[%clk 0:03:04]} 6. Bg5 {[%clk 0:02:54]}  c6 {[%clk 0:03:03]} 7. O-O-O+ {[%clk 0:02:54]}  Nd7 {[%clk 0:03:03]} 8. f4 {[%clk 0:02:54]}  Ke8 {[%clk 0:02:58]} 9. Nf3 {[%clk 0:02:53]}  h6 {[%clk 0:02:56]} 10. Bh4 {[%clk 0:02:46]}  exf4 {[%clk 0:02:53]} 11. e5 {[%clk 0:02:46]}  Ng4 {[%clk 0:02:42]} 12. Ne4 {[%clk 0:02:30]}  g5 {[%clk 0:02:38]} 13. Be1 {[%clk 0:02:30]}  Bg7 {[%clk 0:02:18]} 14. Nd6+ {[%clk 0:02:28]}  Ke7 {[%clk 0:02:14]} 15. Nf5+ {[%clk 0:02:26]}  Kf8 {[%clk 0:02:14]} 16. Nxg7 {[%clk 0:02:19]}  Kxg7 {[%clk 0:02:14]} 17. Bc3 {[%clk 0:02:20]}  Nf2 {[%clk 0:01:57]} 18. e6+ {[%clk 0:02:19]}  Nf6 {[%clk 0:01:57]} 19. h4 {[%clk 0:01:34]}  g4 {[%clk 0:01:43]} 20. Ne5 {[%clk 0:01:22]}  Bxe6 {[%clk 0:01:42]} 21. Be2 {[%clk 0:01:16]}  Nxh1 {[%clk 0:01:41]} 22. Rxh1 {[%clk 0:01:17]}  Ne4 {[%clk 0:01:30]} 23. Nxg4+ {[%clk 0:01:10]}  Nxc3 {[%clk 0:01:30]} 24. bxc3 {[%clk 0:01:11]}  Bd5 {[%clk 0:01:16]} 25. Rf1 {[%clk 0:01:01]}  Rhe8 {[%clk 0:01:06]} 26. Bd3 {[%clk 0:00:56]}  h5 {[%clk 0:01:05]} 27. Nh2 {[%clk 0:00:51]}  Bxg2 {[%clk 0:01:01]} 28. Rg1 {[%clk 0:00:45]}  Kf6 {[%clk 0:00:23]} 29. Rxg2 {[%clk 0:00:44]}  Rg8 {[%clk 0:00:23]} 30. Rf2 {[%clk 0:00:42]}  Ke5 {[%clk 0:00:22]} 31. Nf3+ {[%clk 0:00:42]}  Kd6 {[%clk 0:00:20]} 32. Nd4 {[%clk 0:00:34]}  Rg4 {[%clk 0:00:20]} 33. Be2 {[%clk 0:00:26]}  Rg1+ {[%clk 0:00:18]} 34. Kb2 {[%clk 0:00:26]}  Re8 {[%clk 0:00:16]} 35. Rxf4 {[%clk 0:00:20]}  c5 {[%clk 0:00:14]} 36. Nf5+ {[%clk 0:00:16]}  Ke5 {[%clk 0:00:14]} 37. Rf2 {[%clk 0:00:16]}  Rh1 {[%clk 0:00:09]} 38. Bxh5 {[%clk 0:00:15]}  Re6 {[%clk 0:00:09]} 39. Ne3 {[%clk 0:00:14]}  Rxh4 {[%clk 0:00:08]} 40. Bxf7 {[%clk 0:00:12]}  Rb6+ {[%clk 0:00:09]} 41. Kc1 {[%clk 0:00:10]}  Rh1+ {[%clk 0:00:09]} 42. Kd2 {[%clk 0:00:10]}  Rb2 {[%clk 0:00:09]} 43. Bb3 {[%clk 0:00:09]}  b5 {[%clk 0:00:10]} 44. c4 {[%clk 0:00:09]}  b4 {[%clk 0:00:08]} 45. Re2 {[%clk 0:00:07]}  Kf4 {[%clk 0:00:07]} 46. Nd5+ {[%clk 0:00:07]}  Kf3 {[%clk 0:00:08]} 47. Re3+ {[%clk 0:00:07]}  Kf2 {[%clk 0:00:08]} 48. Re2+ {[%clk 0:00:07]}  Kf3 {[%clk 0:00:08]} 49. Re3+ {[%clk 0:00:07]}  Kg4 {[%clk 0:00:09]} 50. Re2 {[%clk 0:00:06]}  Rbb1 {[%clk 0:00:09]} 51. Nf6+ {[%clk 0:00:06]}  Kf5 {[%clk 0:00:09]} 52. Ne4 {[%clk 0:00:06]}  Rbd1+ {[%clk 0:00:08]} 53. Ke3 {[%clk 0:00:06]}  Rh3+ {[%clk 0:00:09]} 54. Kf2 {[%clk 0:00:07]}  Kf4 {[%clk 0:00:09]} 55. Kg2 {[%clk 0:00:06]}  Rdh1 {[%clk 0:00:07]} 56. Nf2 {[%clk 0:00:05]}  R1h2+ {[%clk 0:00:06]} 57. Kg1 {[%clk 0:00:05]}  Kf3 {[%clk 0:00:04]} 58. Nxh3 {[%clk 0:00:04]}  Rxe2 {[%clk 0:00:04]} 59. Ng5+ {[%clk 0:00:05]}  Kg3 {[%clk 0:00:04]} 60. Kf1 {[%clk 0:00:04]}  Re5 {[%clk 0:00:05]} 61. Nh7 {[%clk 0:00:03]}  Kf3 {[%clk 0:00:04]} 62. Nf6 {[%clk 0:00:02]}  Rf5 {[%clk 0:00:04]} 63. Nd5 {[%clk 0:00:02]}  Rh5 {[%clk 0:00:05]} 64. Ke1 {[%clk 0:00:02]}  Rh2 {[%clk 0:00:05]} 65. Kd1 {[%clk 0:00:02]}  Ke4 {[%clk 0:00:05]} 66. Kc1 {[%clk 0:00:02]}  Kd4 {[%clk 0:00:05]} 67. Kb2 {[%clk 0:00:02]}  a5 {[%clk 0:00:06]} 68. Nb6 {[%clk 0:00:02]}  Rh6 {[%clk 0:00:06]} 69. Na4 {[%clk 0:00:02]}  Ra6 {[%clk 0:00:06]} 70. a3 {[%clk 0:00:02]}  bxa3+ {[%clk 0:00:05]} 71. Kxa3 {[%clk 0:00:03]}  Ra8 {[%clk 0:00:06]} 72. Nb6 {[%clk 0:00:03]}  Rb8 {[%clk 0:00:05]} 73. Nd5 {[%clk 0:00:03]}  Rh8 {[%clk 0:00:06]} 74. Ka4 {[%clk 0:00:03]}  Ra8 {[%clk 0:00:06]} 75. Kb5 {[%clk 0:00:03]}  Ra7 {[%clk 0:00:05]} 76. Nb6 {[%clk 0:00:03]}  Kc3 {[%clk 0:00:04]} 77. Na4+ {[%clk 0:00:03]}  Kd4 {[%clk 0:00:04]} 78. Nxc5 {[%clk 0:00:03]}  Ra8 {[%clk 0:00:03]} 79. Na4 {[%clk 0:00:04]}  Rb8+ {[%clk 0:00:03]} 80. Kxa5 {[%clk 0:00:05]}  Ke5 {[%clk 0:00:03]} 81. c5 {[%clk 0:00:05]}  Kd4 {[%clk 0:00:03]} 82. Nb6 {[%clk 0:00:05]}  Kxc5 {[%clk 0:00:03]} 83. Nd7+ {[%clk 0:00:06]}  Kd6 {[%clk 0:00:03]} 84. Nxb8 {[%clk 0:00:07]}  Kc7 {[%clk 0:00:03]} 85. Kb4 {[%clk 0:00:08]}  Kxb8 {[%clk 0:00:03]} 86. Kc5 {[%clk 0:00:09]}  Kc7 {[%clk 0:00:04]} 87. Bd5 {[%clk 0:00:09]}  Kc8 {[%clk 0:00:04]} 88. c4 {[%clk 0:00:10]}  Kd8 {[%clk 0:00:05]} 89. Kd4 {[%clk 0:00:11]}  Kc7 {[%clk 0:00:06]} 90. c5 {[%clk 0:00:12]}  Kd7 {[%clk 0:00:06]} 91. Ke5 {[%clk 0:00:12]}  Kc7 {[%clk 0:00:07]} 92. c6 {[%clk 0:00:12]}  Kc8 {[%clk 0:00:08]} 93. Kd6 {[%clk 0:00:13]}  Kd8 {[%clk 0:00:08]} 94. Be6 {[%clk 0:00:13]}  Ke8 {[%clk 0:00:08]} 95. c7 {[%clk 0:00:14]}  Kf8 {[%clk 0:00:09]} 96. c8=Q+ {[%clk 0:00:15]}  Kg7 {[%clk 0:00:10]} 97. Qc5 {[%clk 0:00:15]}  Kf6 {[%clk 0:00:10]} 98. Qf5+ {[%clk 0:00:15]}  Kg7 {[%clk 0:00:10]} 99. Qg4+ {[%clk 0:00:16]}  Kh8 {[%clk 0:00:11]} 100. Qg8# {[%clk 0:00:15]} 1-0


[Site "https://www.chess.com"]

[Event "Titled Tuesday Blitz March 28 Late 2023"]
[White "Vovk, Orest"]
[Black "Martinez, Shawn"]
[WhiteFideId "14113490"]
[BlackFideId "2039770"]
[WhiteElo "2215"]
[BlackElo "2174"]
[Result "1-0"]
[Round "02"]
[TimeControl "180+2"]
[Date "2023.03.28"]
[WhiteClock "0:00:57"]
[BlackClock "0:00:10"]

1. h4 {[%clk 0:03:00]}  e5 {[%clk 0:02:52]} 2. h5 {[%clk 0:02:49]}  d5 {[%clk 0:02:50]} 3. h6 {[%clk 0:02:48]}  Nxh6 {[%clk 0:02:48]} 4. d4 {[%clk 0:02:47]}  e4 {[%clk 0:02:34]} 5. Bxh6 {[%clk 0:02:46]}  gxh6 {[%clk 0:02:35]} 6. e3 {[%clk 0:02:47]}  Bg7 {[%clk 0:02:33]} 7. c4 {[%clk 0:02:47]}  c6 {[%clk 0:02:31]} 8. Qb3 {[%clk 0:02:47]}  Be6 {[%clk 0:02:27]} 9. Nc3 {[%clk 0:02:46]}  Qc7 {[%clk 0:02:21]} 10. Nh3 {[%clk 0:02:45]}  dxc4 {[%clk 0:02:20]} 11. Bxc4 {[%clk 0:02:44]}  Bxc4 {[%clk 0:02:19]} 12. Qxc4 {[%clk 0:02:44]}  Nd7 {[%clk 0:02:20]} 13. Nxe4 {[%clk 0:02:37]}  O-O-O {[%clk 0:02:11]} 14. Qxf7 {[%clk 0:02:32]}  Rhg8 {[%clk 0:01:50]} 15. O-O-O {[%clk 0:02:27]}  Rdf8 {[%clk 0:01:32]} 16. Qe6 {[%clk 0:02:25]}  Kb8 {[%clk 0:01:24]} 17. Qd6 {[%clk 0:02:20]}  Qxd6 {[%clk 0:01:19]} 18. Nxd6 {[%clk 0:02:21]}  c5 {[%clk 0:01:15]} 19. d5 {[%clk 0:02:15]}  Ne5 {[%clk 0:01:09]} 20. Nf4 {[%clk 0:02:08]}  a6 {[%clk 0:01:01]} 21. Rh5 {[%clk 0:01:54]}  Kc7 {[%clk 0:01:00]} 22. Nf5 {[%clk 0:01:48]}  Nc4 {[%clk 0:00:52]} 23. Ne6+ {[%clk 0:01:42]}  Kd7 {[%clk 0:00:49]} 24. Nexg7 {[%clk 0:01:41]}  Nd6 {[%clk 0:00:31]} 25. Nxd6 {[%clk 0:01:30]}  Rxg7 {[%clk 0:00:31]} 26. Ne4 {[%clk 0:01:24]}  Rxg2 {[%clk 0:00:28]} 27. Nxc5+ {[%clk 0:01:24]}  Kd6 {[%clk 0:00:28]} 28. Ne4+ {[%clk 0:01:23]}  Ke7 {[%clk 0:00:25]} 29. Rxh6 {[%clk 0:01:22]}  Rf7 {[%clk 0:00:12]} 30. d6+ {[%clk 0:01:20]}  Kd7 {[%clk 0:00:11]} 31. Rdh1 {[%clk 0:01:13]}  Rgg7 {[%clk 0:00:09]} 32. Rxh7 {[%clk 0:01:07]}  Rxh7 {[%clk 0:00:08]} 33. Rxh7 {[%clk 0:01:07]}  Rxh7 {[%clk 0:00:09]} 34. Nf6+ {[%clk 0:01:07]}  Kxd6 {[%clk 0:00:09]} 35. Nxh7 {[%clk 0:01:07]}  b5 {[%clk 0:00:09]} 36. Kc2 {[%clk 0:01:06]}  Kc5 {[%clk 0:00:10]} 37. Kc3 {[%clk 0:01:06]}  a5 {[%clk 0:00:11]} 38. a3 {[%clk 0:01:05]}  b4+ {[%clk 0:00:11]} 39. axb4+ {[%clk 0:01:05]}  axb4+ {[%clk 0:00:12]} 40. Kb3 {[%clk 0:01:06]}  Kb5 {[%clk 0:00:12]} 41. f4 {[%clk 0:01:05]}  Kc5 {[%clk 0:00:11]} 42. e4 {[%clk 0:01:04]}  Kd4 {[%clk 0:00:11]} 43. e5 {[%clk 0:01:05]}  Ke4 {[%clk 0:00:11]} 44. e6 {[%clk 0:01:05]}  Kxf4 {[%clk 0:00:11]} 45. e7 {[%clk 0:01:05]}  Ke3 {[%clk 0:00:11]} 46. e8=Q+ {[%clk 0:01:00]}  Kf2 {[%clk 0:00:11]} 47. Kxb4 {[%clk 0:01:00]}  Kg1 {[%clk 0:00:11]} 48. Qg6+ {[%clk 0:01:00]}  Kf2 {[%clk 0:00:10]} 49. Kc3 {[%clk 0:00:59]}  Ke1 {[%clk 0:00:10]} 50. Qg2 {[%clk 0:00:57]}  Kd1 {[%clk 0:00:10]} 51. Qd2# {[%clk 0:00:57]} 1-0


[Site "https://www.chess.com"]

[Event "Titled Tuesday Blitz March 28 Late 2023"]
[White "Yurasova, Daria"]
[Black "De Souza, Cristiano Gomes"]
[WhiteFideId "34146919"]
[BlackFideId "2151758"]
[WhiteElo "2134"]
[BlackElo "2068"]
[Result "1-0"]
[Round "02"]
[TimeControl "180+2"]
[Date "2023.03.28"]
[WhiteClock "0:00:52"]
[BlackClock "0:01:15"]

1. d4 {[%clk 0:03:00]}  Nf6 {[%clk 0:02:57]} 2. Bg5 {[%clk 0:03:01]}  c5 {[%clk 0:02:56]} 3. d5 {[%clk 0:03:00]}  Qb6 {[%clk 0:02:55]} 4. b3 {[%clk 0:02:35]}  g6 {[%clk 0:02:51]} 5. c3 {[%clk 0:02:28]}  Bg7 {[%clk 0:02:51]} 6. Nf3 {[%clk 0:02:27]}  d6 {[%clk 0:02:47]} 7. Bxf6 {[%clk 0:02:26]}  Bxf6 {[%clk 0:02:46]} 8. e4 {[%clk 0:02:27]}  Nd7 {[%clk 0:02:45]} 9. Be2 {[%clk 0:02:26]}  Ne5 {[%clk 0:02:43]} 10. Nxe5 {[%clk 0:02:25]}  Bxe5 {[%clk 0:02:43]} 11. O-O {[%clk 0:02:26]}  O-O {[%clk 0:02:43]} 12. Qc2 {[%clk 0:02:22]}  a6 {[%clk 0:02:40]} 13. Nd2 {[%clk 0:02:22]}  Qc7 {[%clk 0:02:39]} 14. Rad1 {[%clk 0:02:16]}  b5 {[%clk 0:02:38]} 15. c4 {[%clk 0:02:16]}  b4 {[%clk 0:02:38]} 16. f4 {[%clk 0:02:14]}  Bd4+ {[%clk 0:02:37]} 17. Kh1 {[%clk 0:02:14]}  e6 {[%clk 0:02:36]} 18. Nf3 {[%clk 0:02:13]}  Bg7 {[%clk 0:02:35]} 19. e5 {[%clk 0:02:12]}  exd5 {[%clk 0:02:32]} 20. cxd5 {[%clk 0:02:02]}  Bb7 {[%clk 0:02:25]} 21. Bc4 {[%clk 0:02:02]}  Rad8 {[%clk 0:02:12]} 22. e6 {[%clk 0:01:49]}  fxe6 {[%clk 0:02:11]} 23. Ng5 {[%clk 0:01:46]}  exd5 {[%clk 0:01:51]} 24. Ne6 {[%clk 0:01:45]}  Qe7 {[%clk 0:01:48]} 25. Nxd8 {[%clk 0:01:31]}  dxc4 {[%clk 0:01:41]} 26. Nxb7 {[%clk 0:01:31]}  Qxb7 {[%clk 0:01:37]} 27. Qxc4+ {[%clk 0:01:31]}  Kh8 {[%clk 0:01:36]} 28. h3 {[%clk 0:01:19]}  Bd4 {[%clk 0:01:33]} 29. Rxd4 {[%clk 0:01:18]}  cxd4 {[%clk 0:01:33]} 30. Qxd4+ {[%clk 0:01:19]}  Kg8 {[%clk 0:01:32]} 31. Qxd6 {[%clk 0:01:18]}  Qe4 {[%clk 0:01:30]} 32. Qxa6 {[%clk 0:01:08]}  Rxf4 {[%clk 0:01:22]} 33. Qc8+ {[%clk 0:00:52]}  Kg7 {[%clk 0:01:15]} 34. Qc7+ {[%clk 0:00:52]} 1-0


[Site "https://www.chess.com"]

[Event "Titled Tuesday Blitz March 28 Late 2023"]
[White "Muhammad, Shahzeb"]
[Black "Quinones Garcia, Santiago"]
[WhiteFideId "7804806"]
[BlackFideId "4408497"]
[WhiteElo "2266"]
[BlackElo "2263"]
[Result "0-1"]
[Round "02"]
[TimeControl "180+2"]
[Date "2023.03.28"]
[WhiteClock "0:00:14"]
[BlackClock "0:00:16"]

1. d4 {[%clk 0:02:56]}  Nf6 {[%clk 0:02:59]} 2. Nf3 {[%clk 0:02:57]}  g6 {[%clk 0:02:58]} 3. g3 {[%clk 0:02:58]}  Bg7 {[%clk 0:02:58]} 4. Bg2 {[%clk 0:02:59]}  O-O {[%clk 0:02:59]} 5. O-O {[%clk 0:02:58]}  d6 {[%clk 0:03:00]} 6. h3 {[%clk 0:02:57]}  Nc6 {[%clk 0:02:58]} 7. Bg5 {[%clk 0:02:57]}  Bf5 {[%clk 0:02:57]} 8. a3 {[%clk 0:02:54]}  e5 {[%clk 0:02:54]} 9. d5 {[%clk 0:02:54]}  Ne7 {[%clk 0:02:52]} 10. Nc3 {[%clk 0:02:48]}  h6 {[%clk 0:02:34]} 11. Be3 {[%clk 0:02:44]}  a6 {[%clk 0:02:16]} 12. Qd2 {[%clk 0:02:40]}  Kh7 {[%clk 0:02:16]} 13. g4 {[%clk 0:02:38]}  Bd7 {[%clk 0:02:15]} 14. g5 {[%clk 0:02:23]}  hxg5 {[%clk 0:02:13]} 15. Nxg5+ {[%clk 0:02:22]}  Kg8 {[%clk 0:02:13]} 16. f4 {[%clk 0:02:14]}  Nf5 {[%clk 0:02:09]} 17. fxe5 {[%clk 0:02:12]}  dxe5 {[%clk 0:02:10]} 18. Bf2 {[%clk 0:02:06]}  Bh6 {[%clk 0:02:05]} 19. e4 {[%clk 0:02:03]}  Nd6 {[%clk 0:02:03]} 20. h4 {[%clk 0:02:00]}  Nh5 {[%clk 0:01:57]} 21. b3 {[%clk 0:01:49]}  f6 {[%clk 0:01:51]} 22. Be3 {[%clk 0:01:09]}  fxg5 {[%clk 0:01:49]} 23. hxg5 {[%clk 0:01:10]}  Bg7 {[%clk 0:01:46]} 24. Ne2 {[%clk 0:01:04]}  Qe7 {[%clk 0:01:43]} 25. Bf3 {[%clk 0:01:03]}  Nf4 {[%clk 0:01:32]} 26. Nxf4 {[%clk 0:01:00]}  exf4 {[%clk 0:01:31]} 27. Bxf4 {[%clk 0:01:01]}  Bxa1 {[%clk 0:01:28]} 28. Rxa1 {[%clk 0:01:02]}  Nxe4 {[%clk 0:01:07]} 29. Qh2 {[%clk 0:01:00]}  Nxg5 {[%clk 0:01:01]} 30. Bg2 {[%clk 0:00:51]}  Rae8 {[%clk 0:00:29]} 31. Bxc7 {[%clk 0:00:43]}  Nf3+ {[%clk 0:00:20]} 32. Bxf3 {[%clk 0:00:42]}  Rxf3 {[%clk 0:00:21]} 33. Bf4 {[%clk 0:00:37]}  Qe4 {[%clk 0:00:17]} 34. Bc7 {[%clk 0:00:18]}  Qd4+ {[%clk 0:00:16]} 35. Kg2 {[%clk 0:00:18]}  Rf2+ {[%clk 0:00:16]} 36. Kg3 {[%clk 0:00:18]}  Qe3+ {[%clk 0:00:15]} 37. Kh4 {[%clk 0:00:17]}  Rxh2+ {[%clk 0:00:14]} 38. Bxh2 {[%clk 0:00:16]}  Re4+ {[%clk 0:00:15]} 39. Bf4 {[%clk 0:00:14]}  Qxf4# {[%clk 0:00:16]} 0-1


[Site "https://www.chess.com"]